[Event "5th Vera Menchik Memorial 2022"]
[Site "Prag"]
[Date "2022.06.05"]
[Round "2.8"]
[White "Svacina, Petr"]
[Black "Varga, David"]
[Result "0-1"]
[ECO "C26"]
[WhiteElo "2030"]
[BlackElo "2323"]
[Annotator "TA"]
[PlyCount "92"]
[EventDate "2022.06.05"]
[EventType "tourn"]
[EventCountry "CZE"]
[SourceTitle "playchess.com"]
[Source "ChessBase"]
[SourceQuality "1"]
[TimeControl "720+3"]

{[%evp 9,92,0,0,0,28,24,54,51,51,41,75,41,115,12,99,99,82,45,57,38,29,-38,35,22,20,15,60,76,100,104,141,52,204,175,679,280,267,245,194,39,533,532,524,501,739,234,216,218,223,236,210,231,366,341,332,0,0,-160,0,0,409,401,370,341,273,0,250,0,0,0,0,0,29,16,460,-1075,-1067,-881,-80,-29987,-29988,-29987,-29988,-29987,-29988]} 1. e4 {[%emt 0:00:02]} e5 {[%emt 0:00:01]} 2. Nc3 {[%emt 0:00:01]} Bb4 {[%emt 0:00:09]} 3. Nge2 {[%emt 0:00:04]} Nf6 {[%emt 0:00:03]} 4. g3 {[%emt 0:00:08][%cal Bg2g3,Bg3g4,Bg4g5][%mdl 32]} O-O {[%emt 0:01:24]} 5. Bg2 {[%emt 0:00:02]} d6 {[%emt 0:00:40]} 6. O-O {[%emt 0:00:10] C26: Vienna Game: 2...Nf6, sidelines .} Bg4 {[%emt 0:00:13]} 7. h3 {[%emt 0:00:32]} Bh5 {[%emt 0:00:25]} 8. g4 {[%emt 0:00:58] White is slightly better.} Bg6 {[%emt 0:00:09] [#]} 9. Ng3 $146 {[%emt 0:00:03]} ({Predecessor:} 9. d3 Nc6 10. f4 exf4 11. Bxf4 Re8 12. a3 Bc5+ 13. Kh2 Nd4 14. Ng3 Qd7 15. g5 {1-0 (65) Torres,C (1884)-Gobin,S (1139) Chess.com INT 2020}) 9... c6 {[%emt 0:00:10]} 10. d3 {[%emt 0:02:39]} (10. g5 $5 {[%cal Rg5f6]}) 10... d5 {[%emt 0:00:37]} (10... Ne8 $14) 11. Qe2 {[%emt 0:00:27]} (11. g5 $16 Ne8 12. h4 (12. exd5 f5 $16)) 11... Re8 {[%emt 0:00:21]} (11... d4 $11 {remains equal.} 12. Nb1 (12. a3 Bd6 $11) 12... h6) 12. g5 $16 {[%emt 0:00:41]} Nfd7 {[%emt 0:01:49]} 13. h4 {[%emt 0:00:32]} d4 {[%emt 0:00:49]} 14. Nd1 {[%emt 0:00:38] h5 is the strong threat.} f6 $1 {[%emt 0:00:01]} 15. Qg4 {[%emt 0:00:27]} (15. c3 $11 Bc5 16. a3) 15... Bf7 {[%emt 0:00:48]} (15... fxg5 $1 $15 16. hxg5 Bd6) 16. f4 {[%emt 0:00:27]} exf4 {[%emt 0:00:41]} 17. Bxf4 {[%emt 0:00:07]} Be6 {[%emt 0:00:11]} 18. Nf5 {[%emt 0:00:41]} Bf8 {[%emt 0:01:41]} 19. Qg3 {[%emt 0:00:48]} Na6 {[%emt 0:00:22]} 20. Nf2 {[%emt 0:00:32]} (20. Nxd4 $16 Bc5 21. c3) 20... c5 $2 {[%emt 0:01:04]} (20... Bxf5 $14 21. exf5 Nb4) 21. Ng4 {[%emt 0:00:06]} Nb4 $2 {[%emt 0:00:06]} (21... Kh8 22. gxf6 Nxf6) 22. Rf2 {[%emt 0:00:33]} (22. Bc7 $142 Bxf5 23. Nh6+ gxh6 24. gxf6+ Bg6 25. Bxd8 Rexd8 26. h5 Nxf6 27. hxg6) 22... Rc8 {[%emt 0:00:52]} 23. gxf6 {[%emt 0:00:58]} Nxf6 {[%emt 0:00:08]} 24. Bg5 $2 {[%emt 0:00:49]} (24. Bh3 $18 Kh8 25. Nxf6 Qxf6 26. h5) 24... Nxg4 {[%emt 0:00:01][%mdl 8192]} 25. Bxd8 $18 {[%emt 0:00:11]} Nxf2 {[%emt 0:00:00]} 26. Bg5 {[%emt 0:00:23]} (26. Kxf2 Rcxd8 27. Rc1 Nxa2 $16) 26... g6 {[%emt 0:00:00]} 27. Nh6+ $2 {[%emt 0:00:03]} (27. Qxf2 h5 28. a3) 27... Bxh6 {[%emt 0:00:00]} 28. Bxh6 {[%emt 0:00:02]} ({But not} 28. Qxf2 $6 Bxg5 29. hxg5 Nc6) 28... Ng4 {[%emt 0:00:00]} 29. Bg5 {[%emt 0:00:12]} Nxc2 {[%emt 0:00:00]} 30. Rc1 {[%emt 0:00:06]} Nb4 {[%emt 0:00:00]} (30... Nce3 $142 31. Bh3 Ne5) 31. Bh3 {[%emt 0:00:02] A strong pair of Bishops.} Ne5 {[%emt 0:00:00]} 32. Bxe6+ {[%emt 0:00:08]} (32. Qxe5 $18 {[%cal Og5h6] White wants to mate with Bh6!} Bxh3 33. Qg3) 32... Rxe6 $11 {[%emt 0:00:00]} 33. Bf4 $2 {[%emt 0:00:03]} (33. Qh3 $11 Rec6 34. Bf4 (34. Rd1 Rf8 $11) 34... Nbxd3 35. Bxe5 Nxe5 36. Qb3+ c4 37. Qb5) 33... Nexd3 $2 {[%emt 0:00:01] 0x0.00222cc6db62dp-1022s more active pieces.} (33... Nbxd3 $17 34. Rf1 Nxf4 35. Qxf4 Rce8) 34. Rf1 {[%emt 0:00:03] Threatening mate with Bh6.} Rf8 $2 {[%emt 0:00:12][%mdl 8192]} (34... Rxe4 $2 35. Bg5 Ne5 36. Qb3+ Kg7 37. a3 $18) (34... Nxf4 $11 35. Qxf4 Re7) 35. Bh6 $18 {[%emt 0:00:03][%csl Gh6][%cal Rf1f8]} Rxf1+ {[%emt 0:00:13]} 36. Kxf1 {[%emt 0:00:01] Intending Qb8+ and mate.} Ne5 {[%emt 0:00:08] [#]} (36... Rxe4 $2 37. Qf3 Re1+ 38. Kg2 $18) (36... Rf6+ $2 37. Kg1 Kf7 38. Qc7+ Ke6 39. Qc8+ Ke5 40. Bg7 $18) 37. h5 $2 {[%emt 0:00:05]} ({Not} 37. Qb3 Kf7 $16) (37. Qf4 $1 $18 {[%csl Gh6][%cal Rf4f8]} Nd7 38. Qc7) 37... d3 $2 {[%emt 0:00:13]} (37... Nxa2 $2 38. Qb3 Kf7 39. Qxb7+ Re7 40. Qd5+ Re6 41. Qxc5 Rf6+ 42. Kg2 $18) (37... Nbd3 $11 {and Black has nothing to worry.} 38. Qg5 Nf7) 38. a3 $2 {[%emt 0:00:01]} (38. Qf4 $18 {[%csl Gh6][%cal Rf4f8]} Nd7 39. Qc7) 38... Nbc6 {[%emt 0:00:05]} 39. Bf4 {[%emt 0:00:03]} c4 {[%emt 0:00:06]} 40. hxg6 {[%emt 0:00:04]} Rxg6 {[%emt 0:00:02]} 41. Qh4 {[%emt 0:00:02]} Kg7 $2 {[%emt 0:00:14][%mdl 8192]} (41... Re6 $11 {and Black is okay.}) 42. Qh5 $4 {[%emt 0:00:04][%mdl 8192]} (42. Bxe5+ $18 Nxe5 43. Qe7+ Nf7 44. e5) 42... Rf6 $19 {[%emt 0:00:04]} 43. Qg5+ {[%emt 0:00:02]} Kf7 $2 {[%emt 0:00:02]} (43... Ng6 $19 44. Qh6+ Kg8) 44. Ke1 $2 {[%emt 0:00:01][%mdl 8192] [#]} (44. Qh5+ $17 Kg7 45. Qh2) 44... Nf3+ {[%emt 0:00:01] Black mates.} 45. Kd1 {[%emt 0:00:02]} Nxg5 {[%emt 0:00:01]} 46. Bxg5 {[%emt 0:00:03]} Rf2 {[%emt 0:00:01] Weighted Error Value: White=0.81/Black=1.12} 0-1

[Event "5th Vera Menchik Memorial 2022"]
[Site "Prag"]
[Date "2022.06.05"]
[Round "2.9"]
[White "Jacko, Vladimir"]
[Black "Baran, Peter"]
[Result "1-0"]
[ECO "E61"]
[WhiteElo "2379"]
[BlackElo "1879"]
[Annotator "TA"]
[PlyCount "66"]
[EventDate "2022.06.05"]
[EventType "tourn"]
[EventCountry "CZE"]
[SourceTitle "playchess.com"]
[Source "ChessBase"]
[SourceQuality "1"]
[TimeControl "720+3"]

{[%evp 14,66,30,15,36,20,8,13,45,36,57,38,96,103,193,211,201,148,249,223,218,227,282,276,288,265,271,257,258,254,263,262,251,257,255,237,243,243,313,313,313,318,330,278,304,290,404,382,430,381,462,446,672,650,1364]} 1. d4 {[%emt 0:00:03]} Nf6 {[%emt 0:00:01]} 2. c4 {[%emt 0:00:02]} g6 {[%emt 0:00:01]} 3. Nc3 {[%emt 0:00:02]} Bg7 {[%emt 0:00:02]} 4. Bg5 {[%emt 0:00:23]} d6 {[%emt 0:00:10]} 5. Nf3 {[%emt 0:00:07]} Nbd7 {[%emt 0:00:02]} 6. e3 {[%emt 0:00:05]} O-O {[%emt 0:00:10]} 7. Be2 {[%emt 0:00:02]} e5 {[%emt 0:00:06] is the new trend.} 8. O-O {[%emt 0:00:17]} Re8 {[%emt 0:00:20] E61: King's Indian: Early deviations for White, including Smyslov System.} 9. Qc2 {[%emt 0:00:38]} h6 {[%emt 0:00:10]} 10. Bh4 {[%emt 0:00:01]} c6 {[%emt 0:00:34] The position is equal.} 11. Rfd1 {[%emt 0:00:05]} Qe7 {[%emt 0:00:19]} 12. h3 {[%emt 0:00:47]} e4 {[%emt 0:00:25]} (12... exd4 $14 13. exd4 (13. Nxd4 a5 $14) 13... b6) 13. Nd2 $16 {[%emt 0:00:09][%cal Od2e4] [#]} d5 $146 {[%emt 0:00:01]} (13... g5 $16) ({Predecessor:} 13... g5 14. Bg3 Nf8 15. b4 Ng6 16. d5 cxd5 17. cxd5 Bf5 18. Nc4 Red8 19. Nb5 Ne8 {0-1 (44) Hayrapetyan,H (2503)-Kuzubov,Y (2619) Dubai 2013}) 14. cxd5 $18 {[%emt 0:00:05][%cal Bc4d5,Bd5d6][%mdl 32]} g5 {[%emt 0:00:01]} 15. Bg3 {[%emt 0:01:16] Black must now prevent dxc6.} Nb6 {[%emt 0:00:50]} (15... Nxd5 $16 16. Ndxe4 Nxc3 17. Nxc3 Nf6) 16. d6 {[%emt 0:00:37]} Qe6 {[%emt 0:00:05]} 17. Be5 {[%emt 0:01:10]} g4 {[%emt 0:00:37]} 18. Bxf6 {[%emt 0:01:15]} ({But not} 18. Ndxe4 Nxe4 19. Bxg4 (19. Qxe4 f6 $16) 19... f5 20. Nxe4 fxg4 $18) 18... Qxf6 {[%emt 0:00:02]} 19. Bxg4 {[%emt 0:00:56]} Bxg4 {[%emt 0:09:04]} 20. hxg4 {[%emt 0:05:03]} Qxd6 {[%emt 0:00:00]} 21. Ndxe4 {[%emt 0:00:00][%cal Bd2e4,Be4g3,Bg3f5][%mdl 32]} Qg6 {[%emt 0:00:00]} 22. f3 {[%emt 0:00:00]} Nd5 {[%emt 0:00:00]} 23. Qf2 {[%emt 0:00:00]} Rad8 {[%emt 0:00:00]} 24. Nxd5 {[%emt 0:00:00]} cxd5 {[%emt 0:00:00]} 25. Ng3 {[%emt 0:00:00]} Qe6 {[%emt 0:00:00]} 26. Nf5 {[%emt 0:00:00]} Rc8 {[%emt 0:00:00]} 27. Rac1 {[%emt 0:00:00]} Bf8 {[%emt 0:00:00]} 28. Qh4 {[%emt 0:00:00]} Rc6 {[%emt 0:00:00]} 29. Rxc6 {[%emt 0:00:00]} bxc6 {[%emt 0:00:00]} 30. Rc1 {[%emt 0:00:00]} Qg6 {[%emt 0:00:00]} 31. b3 {[%emt 0:00:00]} Kh7 {[%emt 0:00:00]} 32. Kf2 {[%emt 0:00:00]} Re6 {[%emt 0:00:00]} (32... Rc8 $142 33. Qh2 f6) 33. Qd8 {[%emt 0:00:00]} Rf6 {[%emt 0:00:00] White took control after the opening.  Weighted Error Value: White=0.11 (very precise) /Black=0.44} 1-0

[Event "5th Vera Menchik Memorial 2022"]
[Site "Prag"]
[Date "2022.06.05"]
[Round "2.10"]
[White "Holy, Filip"]
[Black "Burdalev, Kirill"]
[Result "1/2-1/2"]
[ECO "B04"]
[WhiteElo "2066"]
[BlackElo "2381"]
[Annotator "TA"]
[PlyCount "71"]
[EventDate "2022.06.05"]
[EventType "tourn"]
[EventCountry "CZE"]
[SourceTitle "playchess.com"]
[Source "ChessBase"]
[SourceQuality "1"]
[TimeControl "720+3"]

{[%evp 10,71,46,47,52,45,50,50,58,52,51,36,37,33,52,41,86,43,53,25,67,64,79,70,81,64,108,117,108,77,70,77,104,92,101,77,80,54,64,67,87,59,146,146,128,93,110,111,121,117,229,229,228,221,229,228,228,229,221,156,274,0,180,0]} 1. e4 {[%emt 0:00:01]} Nf6 {[%emt 0:00:02]} 2. e5 {[%emt 0:00:01]} Nd5 {[%emt 0:00:00]} 3. d4 {[%emt 0:00:01]} d6 {[%emt 0:00:08]} 4. Nf3 {[%emt 0:00:01]} dxe5 {[%emt 0:00:01]} 5. Nxe5 {[%emt 0:00:02]} c6 {[%emt 0:00:01]} 6. Be2 {[%emt 0:00:01]} Bf5 {[%emt 0:00:06] B04: Alekhine's Defence: 4 Nf3.} 7. O-O {[%emt 0:00:24]} Nd7 {[%emt 0:00:02]} 8. Nf3 {[%emt 0:00:02]} e6 {[%emt 0:00:06] White is slightly better.} 9. c4 {[%emt 0:01:02] Inhibits b5.} N5f6 {[%emt 0:00:02]} 10. Nc3 {[%emt 0:00:04]} Bd6 {[%emt 0:00:21]} 11. Nh4 {[%emt 0:00:11]} Bg6 {[%emt 0:00:01]} 12. g3 {[%emt 0:00:02]} Qc7 {[%emt 0:00:08]} 13. Be3 {[%emt 0:01:30]} Rd8 {[%emt 0:00:35] [#]} 14. a3 $146 {[%emt 0:02:05]} ({Predecessor:} 14. Re1 O-O 15. Nxg6 hxg6 16. c5 Be7 17. b4 b6 18. Qc2 bxc5 19. dxc5 {1-0 (62) Johansson,E (1663)-Lagergren,H (1899) ICCF email 2020}) 14... O-O {[%emt 0:01:04]} 15. Nxg6 {[%emt 0:00:52]} hxg6 {[%emt 0:00:01]} 16. b4 {[%emt 0:00:19]} a6 {[%emt 0:00:38]} 17. Qb3 {[%emt 0:00:30]} e5 {[%emt 0:00:19]} 18. c5 {[%emt 0:01:22]} Be7 {[%emt 0:00:01]} 19. Rfd1 {[%emt 0:00:25] White is more active.} exd4 {[%emt 0:00:15]} 20. Rxd4 {[%emt 0:00:13]} Ne5 {[%emt 0:00:29]} 21. Rad1 {[%emt 0:00:24]} Rxd4 {[%emt 0:00:02]} 22. Rxd4 {[%emt 0:00:03]} Rd8 {[%emt 0:00:22]} 23. Rxd8+ {[%emt 0:00:06]} Qxd8 {[%emt 0:00:02]} 24. h3 {[%emt 0:00:23]} Qd7 {[%emt 0:01:21]} 25. Kh2 {[%emt 0:00:26]} Nd5 {[%emt 0:02:49]} ({Black should try} 25... Bd8 $14) 26. Nxd5 $16 {[%emt 0:00:34]} cxd5 {[%emt 0:00:01]} 27. Qd1 {[%emt 0:00:49]} Qe6 {[%emt 0:00:23]} 28. Bf1 {[%emt 0:01:12]} Nc4 {[%emt 0:01:26]} 29. Bc1 {[%emt 0:00:03]} Bf6 {[%emt 0:00:20]} (29... b6 $16) 30. Bg2 $18 {[%emt 0:00:03]} d4 {[%emt 0:00:39]} 31. Bxb7 {[%emt 0:00:03] And now Kg2 would win.} Qf5 {[%emt 0:00:07]} 32. Kg2 {[%emt 0:00:16] Strongly threatening Qe2.} (32. Bxa6 Qxf2+ 33. Kh1 Qxg3 $17) 32... d3 {[%emt 0:00:11] [#] Inhibits Qe2.} 33. Bf3 $1 {[%emt 0:00:04] Qb3 is the strong threat.} ({Resist} 33. Bxa6 Qd5+ 34. f3 (34. Qf3 Qxf3+ 35. Kxf3 d2 $16) 34... Ne5) 33... Ne5 {[%emt 0:01:00]} 34. Bd2 {[%emt 0:00:01]} Nc4 {[%emt 0:00:24]} (34... Bg5 $16 {was called for.} 35. Bg4 Qe4+ 36. f3 Qd5 37. Bxg5 f5) 35. Bc1 {[%emt 0:00:01] aiming for Qb3. A strong pair of Bishops.} Ne5 $1 {[%emt 0:00:01]} 36. Bd2 $2 {[%emt 0:00:01] Weighted Error Value: White=0.17 (very precise) /Black=0.18 (very precise)} (36. Bf4 $18) 1/2-1/2

[Event "5th Vera Menchik Memorial 2022"]
[Site "Prag"]
[Date "2022.06.05"]
[Round "2.12"]
[White "Dubansky, Bohuslav"]
[Black "Benes, Petr"]
[Result "1/2-1/2"]
[ECO "C44"]
[WhiteElo "2223"]
[BlackElo "2121"]
[Annotator "TA"]
[PlyCount "79"]
[EventDate "2022.06.05"]
[EventType "tourn"]
[EventCountry "CZE"]
[SourceTitle "playchess.com"]
[Source "ChessBase"]
[SourceQuality "1"]
[TimeControl "720+3"]

{[%evp 12,79,66,38,31,4,96,15,131,18,57,53,46,12,19,8,10,-6,26,33,87,115,112,86,290,95,103,113,107,108,388,116,613,171,362,-396,-410,-403,-402,-431,-445,-434,-435,-499,-405,-480,-477,-606,-599,-680,-683,-666,-416,-404,-393,-453,-88,-933,-887,-1229,-1173,-1201,-1141,-918,-783,-1234,-1012,-1507,-1404,-1364]} 1. e4 {[%emt 0:00:03]} Nc6 {[%emt 0:00:19]} 2. d4 {[%emt 0:00:07]} e5 {[%emt 0:00:02]} 3. Nf3 {[%emt 0:00:02]} exd4 {[%emt 0:00:04]} 4. Bc4 {[%emt 0:00:03]} Bb4+ {[%emt 0:00:05]} 5. c3 {[%emt 0:00:04]} dxc3 {[%emt 0:00:01]} 6. O-O {[%emt 0:00:03]} c2 {[%emt 0:00:01] 6...Nf6 gains popularity.} 7. Qxc2 {[%emt 0:00:23]} d6 {[%emt 0:00:19] C44: Ponziani Opening and Scotch Gambit.} 8. Nc3 {[%emt 0:00:43][%mdl 1024] White has compensation.} Nf6 {[%emt 0:00:08]} (8... Bxc3 $11 9. Qxc3 Nf6) 9. Bg5 {[%emt 0:00:23] [#]} (9. Ng5 $16 Rf8 10. Qb3 Bxc3 11. Bxf7+ (11. bxc3 Qe7 $11) 11... Ke7 12. bxc3) 9... h6 $146 {[%emt 0:00:17]} (9... Bxc3 $11 {remains equal.} 10. Qxc3 h6 11. Bxf6 Qxf6) ({Predecessor:} 9... O-O 10. Nd5 Bc5 11. Nxf6+ gxf6 12. Bh6 Be6 13. Bxe6 fxe6 14. Bxf8 Qxf8 15. Qb3 Qc8 {1-0 (50) Lantigua Naut,C (2018)-Martinez Nova,J San Francisco de Macoris 2016}) 10. Bh4 {[%emt 0:01:58] White is more active.} ({White must play} 10. Bxf6 $16 gxf6 11. Nd5) 10... g5 {[%emt 0:01:41]} 11. Bg3 {[%emt 0:00:05]} Bxc3 {[%emt 0:02:20]} 12. Qxc3 {[%emt 0:00:20]} O-O {[%emt 0:00:05]} 13. Rfe1 {[%emt 0:00:01]} Nh5 $1 {[%emt 0:00:59]} 14. Rad1 {[%emt 0:00:21]} Qf6 {[%emt 0:00:25]} 15. e5 $36 {[%emt 0:02:01][%mdl 2048] White has good play.} dxe5 {[%emt 0:00:01]} (15... Qg7 $14) 16. Bxe5 $16 {[%emt 0:00:02]} Nxe5 {[%emt 0:00:08]} 17. Nxe5 {[%emt 0:00:02]} (17. Qxe5 $6 Bg4 $11) 17... Nf4 $2 {[%emt 0:00:32] [#]} (17... Be6 $16) 18. Nxf7 $2 {[%emt 0:01:11]} (18. Bxf7+ $1 $18 {is the precise move to win.} Rxf7 19. Nxf7 Qxc3 20. Nxh6+ Kh7 21. bxc3) 18... Qxc3 {[%emt 0:00:02]} 19. bxc3 {[%emt 0:00:02]} Kg7 {[%emt 0:00:04]} (19... Rxf7 $2 20. Rd8+ (20. Re7 Be6 $11) 20... Kg7 21. Bxf7 Kxf7 22. Ree8 $18) 20. Re7 {[%emt 0:00:43][%csl LRc7,LRg5]} Be6 $2 {[%emt 0:02:03][%mdl 8192]} 21. Bxe6 $2 {[%emt 0:00:49]} (21. Nxg5+ $18 Kf6 22. Rxe6+ Kxg5 23. h4+ Kf5 24. Rxh6) 21... Nxe6 $2 {[%emt 0:00:02][%mdl 8192]} (21... Kf6 $16) 22. Rdd7 $2 {[%emt 0:00:57]} ({Weaker is} 22. Rxe6 Rxf7 23. f3 Raf8 $11) (22. Nxg5+ Kg6 23. Rxe6+ Rf6 24. Rxf6+ Kxf6 25. Ne4+ Ke7 26. f3) 22... Rae8 $2 {[%emt 0:00:11]} (22... Kf6) 23. Nd6+ $4 {[%emt 0:00:08][%mdl 8192]} (23. Rxe8 $18 {and all is fine. Nd8+ is the strong threat.} Rxf7 24. Rd5 (24. Rxe6 Rxd7 25. g3 c5 $11)) 23... Rxe7 $19 {[%emt 0:00:08] Black keeps a firm grip on the game.} 24. Rxe7+ {[%emt 0:02:44][%mdl 4096] Endgame KRN-KRN} Kf6 25. Rd7 {[%emt 0:00:00]} cxd6 {[%emt 0:00:07]} 26. Rxb7 {[%emt 0:00:00] KRN-KR} Rf7 {[%emt 0:00:05]} 27. Rb8 {[%emt 0:00:00]} Nc5 {[%emt 0:00:05]} 28. g3 {[%emt 0:00:00]} Ke5 {[%emt 0:00:18]} 29. Kg2 {[%emt 0:00:00]} g4 {[%emt 0:00:09] Inhibits f3.} 30. Re8+ {[%emt 0:00:00]} Kd5 {[%emt 0:00:09] aiming for ...Ne4.} 31. Rg8 {[%emt 0:00:00]} Nd3 {[%emt 0:00:07]} 32. Rxg4 {[%emt 0:00:00]} Rxf2+ {[%emt 0:00:02]} 33. Kh3 {[%emt 0:00:00]} Rxa2 $2 {[%emt 0:00:01]} (33... Nc5 $19 {is more deadly.} 34. a3 Rc2) 34. Rg6 $2 {[%emt 0:00:00][%mdl 8192]} (34. Rd4+ $17 Kc5 35. Rxd3) 34... Nf2+ {[%emt 0:00:22] Black is clearly winning.} 35. Kh4 {[%emt 0:00:00]} Ne4 {[%emt 0:00:03][%csl LRc3,LRh2]} 36. h3 {[%emt 0:00:00]} Nxc3 {[%emt 0:00:11] [#] And now ...a5 would win.} 37. Rxh6 {[%emt 0:00:00]} Ne4 {[%emt 0:00:08] White must now prevent ...a5.} 38. g4 {[%emt 0:00:00]} Rg2 {[%emt 0:00:09]} 39. Rh7 {[%emt 0:00:00]} a5 {[%emt 0:00:05]} 40. Rh5+ {[%emt 0:00:00][%mdl 32768] Weighted Error Value: White=1.26/Black=0.97. An unexpected result.} 1/2-1/2

[Event "5th Vera Menchik Memorial 2022"]
[Site "Prag"]
[Date "2022.06.05"]
[Round "2.13"]
[White "Turkova, Karolina"]
[Black "Richtrova, Eliska"]
[Result "1/2-1/2"]
[ECO "B07"]
[WhiteElo "1891"]
[BlackElo "2204"]
[Annotator "TA"]
[PlyCount "76"]
[EventDate "2022.06.05"]
[EventType "tourn"]
[EventCountry "CZE"]
[SourceTitle "playchess.com"]
[Source "ChessBase"]
[SourceQuality "1"]
[TimeControl "720+3"]

{[%evp 10,76,37,42,87,72,96,91,98,95,116,83,106,55,117,68,100,63,140,143,160,99,165,153,369,333,333,207,178,208,219,213,370,372,438,446,425,360,393,378,421,402,421,410,410,386,464,455,423,346,539,404,392,360,651,643,623,612,569,0,214,216,280,280,351,170,175,153,157]} 1. e4 {[%emt 0:00:02]} d6 {[%emt 0:00:03]} 2. d4 {[%emt 0:00:03]} Nf6 {[%emt 0:00:02]} 3. Nc3 {[%emt 0:00:05]} g6 {[%emt 0:00:02]} 4. Be3 {[%emt 0:00:10]} c6 {[%emt 0:00:02]} 5. Qd2 {[%emt 0:00:22]} b5 {[%emt 0:00:06]} 6. Bd3 {[%emt 0:00:11]} Ng4 {[%emt 0:01:00] [#] B07: Pirc Defence: Miscellaneous Systems.} 7. Bg5 $1 {[%emt 0:00:45]} h6 {[%emt 0:00:13] [#]} 8. Bh4 {[%emt 0:00:24]} Bg7 {[%emt 0:00:44] White is better.} 9. h3 {[%emt 0:00:52]} Nf6 {[%emt 0:00:02]} 10. Nf3 {[%emt 0:00:16] Against e5} a6 {[%emt 0:00:30]} 11. O-O-O {[%emt 0:00:44] White is more active.} ({White should play} 11. e5 $16 dxe5 12. dxe5) 11... Be6 {[%emt 0:00:26] [#]} (11... b4 $14) 12. Kb1 $146 {[%emt 0:00:22]} ({Better is} 12. Rhe1 $16) ({Predecessor:} 12. Rhe1 Qa5 13. a3 Qb6 14. e5 dxe5 15. dxe5 Nd5 16. Be4 Nxc3 17. Qxc3 Ra7 18. Nd4 {1-0 (42) Pletanek,J (2179)-Hajny,M (2058) Czech Republic 2013}) 12... Nbd7 $14 {[%emt 0:01:16]} 13. Rhe1 {[%emt 0:01:27][%cal Od4d5] Hoping for d5!} Nb6 {[%emt 0:00:20] Inhibits d5.} (13... g5 $14) 14. e5 $16 {[%emt 0:00:22]} dxe5 {[%emt 0:00:51]} 15. Nxe5 {[%emt 0:01:05]} ({White should try} 15. dxe5 Nfd5 16. Nd4 Nxc3+ 17. Qxc3) 15... g5 {[%emt 0:00:03]} (15... Qxd4 $16 16. Nxg6 Nfd5) 16. Bg3 $18 {[%emt 0:00:07]} ({Inferior is} 16. Nxc6 Qd6 17. Rxe6 fxe6 18. Bg6+ Kf8 $17) 16... Na4 $2 {[%emt 0:00:20]} (16... Qxd4 $16 {was necessary.} 17. Nxc6 Qd7) 17. Nxa4 {[%emt 0:00:27]} bxa4 {[%emt 0:00:02]} 18. Bc4 {[%emt 0:01:36]} Bxc4 {[%emt 0:00:22]} 19. Nxc4 {[%emt 0:00:01][%cal Oe1e7]} O-O {[%emt 0:00:05]} 20. h4 {[%emt 0:00:18]} Qd5 {[%emt 0:00:26]} (20... gxh4 21. Bf4 (21. Bxh4 Nd5 $16) 21... Kh7) 21. Nb6 {[%emt 0:00:06]} Qb5 {[%emt 0:00:05]} 22. Nxa8 {[%emt 0:00:04]} Rxa8 {[%emt 0:00:01]} 23. Rxe7 {[%emt 0:00:23]} gxh4 {[%emt 0:00:56]} 24. Bxh4 {[%emt 0:00:05]} Nd5 {[%emt 0:00:37]} 25. Rd7 {[%emt 0:00:51]} Rb8 {[%emt 0:00:08][%csl Gb8][%cal Rb5b2]} 26. Rd8+ {[%emt 0:00:25]} Rxd8 {[%emt 0:00:10]} 27. Bxd8 {[%emt 0:00:01]} a3 {[%emt 0:00:35][%csl Ga3][%cal Rb5b2]} 28. b3 {[%emt 0:00:15] c4 is the strong threat.} Qb8 {[%emt 0:00:10]} 29. Bh4 {[%emt 0:00:34]} c5 {[%emt 0:00:12]} (29... Qh2 {keeps fighting.}) 30. Bg3 {[%emt 0:00:16]} Qc8 {[%emt 0:00:34]} 31. Be5 {[%emt 0:00:04]} cxd4 {[%emt 0:00:47]} (31... c4 32. Rc1 Bf8) 32. Bxg7 {[%emt 0:00:18]} Nc3+ {[%emt 0:00:26]} 33. Ka1 {[%emt 0:00:01][%cal Od2h6]} Nxd1 {[%emt 0:00:34][%cal Bc3d1,Bd1b2,Bb2d3,Bd3f2][%mdl 32]} 34. Qxd4 {[%emt 0:00:02]} (34. Bxd4 $18 Qc6 35. Qxd1) 34... Qxc2 $2 {[%emt 0:00:09]} (34... Ne3 $1 $11 35. Qd2 (35. Qxe3 {gets mated.} Qxc2 36. Qe1 Kxg7 37. Qe5+ Kh7) 35... Nxc2+ 36. Kb1 Kxg7) 35. Bxh6 {[%emt 0:00:14][%csl Gh6][%cal Rd4g7]} Qb2+ {[%emt 0:00:40]} 36. Qxb2 {[%emt 0:00:02]} Nxb2 {[%emt 0:00:07]} 37. Bc1 {[%emt 0:00:06]} (37. f3 $142) 37... Nd3 {[%emt 0:00:03]} 38. Bxa3 {[%emt 0:00:01] Black must now prevent Kb1.} Nxf2 {[%emt 0:00:01] Weighted Error Value: White=0.39/Black=0.62} 1/2-1/2